fUSD/lending_fUSD_20240418
["ID","MTS","AMOUNT","RATE_DAILY","PERIOD"]
[322881778,1713471041108,-167.33,0.00016922,2]
[322881779,1713471041119,-412.35,0.00016979,2]
[322881780,1713471041130,-200.629802,0.00016986,2]
[322881781,1713471041140,-2230.0,0.0001699,2]
[322881782,1713471041150,-150.27,0.0001699,2]
[322881783,1713471041160,-150.27,0.0001699,2]
[322881784,1713471041170,-150.27,0.0001699,2]
[322881785,1713471041180,-150.27,0.0001699,2]
[322881786,1713471041190,-150.27,0.0001699,2]
[322881787,1713471041200,-150.27,0.0001699,2]
[322881788,1713471041210,-150.27,0.0001699,2]
[322881789,1713471041223,-10549.84733663,0.00016998,2]
[322881790,1713471041232,-559.66,0.00016998,2]
[322881791,1713471041243,-559.66,0.00016998,2]
[322881792,1713471041254,-559.66,0.00016998,2]
[322881793,1713471041264,-559.66,0.00016999,2]
[322881794,1713471041273,-559.66,0.00016999,2]
[322881795,1713471041283,-559.66,0.00016999,2]
[322881796,1713471041296,-559.66,0.00016999,2]
[322881797,1713471041307,-559.66,0.00016999,2]
[322881798,1713471041317,-559.66,0.00016999,2]
[322881799,1713471041327,-565.54,0.00016999,2]
[322881800,1713471041338,-565.54,0.00016999,2]
[322881801,1713471041348,-565.54,0.00016999,2]
[322881802,1713471041357,-565.54,0.00016999,2]
[322881803,1713471041366,-565.54,0.00016999,2]
[322881804,1713471041375,-565.54,0.00016999,2]
[322881805,1713471041385,-565.54,0.00016999,2]
[322881806,1713471041394,-835161.27687264,0.00017,2]
[322881807,1713471041406,-642.35214,0.00017,2]
[322881808,1713471041432,-2705.45270495,0.00017,2]
[322881809,1713471041442,-71351.3926415,0.00017,2]
[322881821,1713471043894,-654.02,0.00017,2]
[322881822,1713471043996,-751199.20655347,0.00017,2]
[322881823,1713471044007,-151.03370214,0.00017006,2]
[322881824,1713471044017,-1392.0,0.00017045,2]
[322881825,1713471044028,-969.0,0.00017045,2]
[322881826,1713471044039,-2293.0,0.00017045,2]
[322881827,1713471044049,-305.64,0.00017175,2]
[322881828,1713471044058,-151.03370214,0.00017185,2]
[322881829,1713471044068,-332.8,0.00017191,2]
[322881830,1713471044078,-150.27,0.00017234,2]
[322881831,1713471044087,-461.0,0.00017245,2]
[322881832,1713471044097,-1250.0,0.00017245,2]
[322881833,1713471044111,-541.0,0.00017245,2]
[322881834,1713471044120,-200.004,0.00017245,2]
[322881835,1713471044129,-609.0,0.00017245,2]
[322881836,1713471044139,-436.0,0.00017245,2]
[322881837,1713471044148,-1950.0,0.00017245,2]
[322881838,1713471044157,-257.0,0.00017245,2]
[322881839,1713471044166,-807.0,0.00017245,2]
[322881840,1713471044175,-3079.0,0.00017245,2]
[322881841,1713471044184,-399.0,0.00017245,2]
[322881842,1713471044193,-2443.0,0.00017245,2]
[322881843,1713471044202,-1473.0,0.00017245,2]
[322881844,1713471044211,-150.0,0.00017245,2]
[322881845,1713471044222,-1639.0,0.00017245,2]
[322881846,1713471044231,-214.0,0.00017245,2]
[322881847,1713471044240,-355.0,0.00017245,2]
[322881848,1713471044249,-443.0,0.00017245,2]
[322881849,1713471044258,-500.0,0.00017263,2]
[322881850,1713471044267,-200.0,0.00017263,2]
[322881851,1713471044276,-5725.0,0.00017278,2]
[322881852,1713471044285,-5889.0,0.00017278,2]
[322881853,1713471044295,-2703.0,0.00017278,2]
[322881854,1713471044304,-37661.0,0.00017278,2]
[322881855,1713471044313,-1055.0,0.00017278,2]
[322881856,1713471044322,-1000.0,0.0001728,2]
[322881857,1713471044332,-500.0,0.0001728,2]
[322881858,1713471044340,-600.0,0.0001728,2]
[322881859,1713471044350,-150.0,0.00017333,2]
[322881860,1713471044359,-150.0,0.00017335,2]
[322881861,1713471044368,-150.0,0.00017336,2]
[322881862,1713471044377,-150.0,0.00017337,2]
[322881863,1713471044386,-150.0,0.00017343,2]
[322881864,1713471044396,-150.0,0.00017344,2]
[322881865,1713471044405,-150.0,0.00017354,2]
[322881866,1713471044415,-150.0,0.00017359,2]
[322881867,1713471044425,-150.0,0.00017362,2]
[322881868,1713471044434,-150.0,0.00017363,2]
[322881869,1713471044443,-151.03370214,0.00017364,2]
[322881870,1713471044455,-150.0,0.00017364,2]
[322881871,1713471044466,-150.0,0.00017367,2]
[322881872,1713471044477,-150.0,0.00017369,2]
[322881873,1713471044487,-150.0,0.00017378,2]
[322881874,1713471044496,-150.0,0.00017379,2]
[322881875,1713471044505,-150.0,0.00017382,2]
[322881876,1713471044515,-150.0,0.00017385,2]
[322881877,1713471044524,-150.0,0.00017387,2]
[322881878,1713471044533,-150.0,0.00017387,2]
[322881879,1713471044542,-150.0,0.00017388,2]
[322881880,1713471044552,-150.0,0.00017392,2]
[322881881,1713471044561,-150.0,0.00017393,2]
[322881882,1713471044571,-418.65,0.00017397,2]
[322881883,1713471044580,-521.47,0.00017397,2]
[322881884,1713471044592,-329.04,0.00017397,2]
[322881885,1713471044602,-150.0,0.00017397,2]
[322881886,1713471044611,-302.05,0.00017397,2]
[322881887,1713471044621,-150.0,0.00017401,2]
[322881888,1713471044630,-150.0,0.00017402,2]
[322881889,1713471044640,-150.0,0.00017402,2]
[322881890,1713471044649,-150.0,0.00017406,2]
[322881891,1713471044659,-150.0,0.00017407,2]
[322881892,1713471044669,-150.0,0.00017408,2]
[322881893,1713471044680,-150.0,0.0001741,2]
[322881894,1713471044690,-150.0,0.00017414,2]
[322881895,1713471044699,-150.0,0.00017415,2]
[322881896,1713471044709,-343.14054442,0.00017415,2]
[322881897,1713471044719,-150.0,0.00017418,2]
[322881898,1713471044730,-150.0,0.00017419,2]
[322881899,1713471044740,-150.0,0.0001742,2]
[322881900,1713471044751,-150.0,0.00017422,2]
[322881901,1713471044761,-150.0,0.00017425,2]
[322881902,1713471044771,-150.0,0.00017428,2]
[322881903,1713471044782,-150.0,0.00017429,2]
[322881904,1713471044792,-150.0,0.00017434,2]
[322881905,1713471044803,-150.0,0.00017435,2]
[322881906,1713471044814,-150.0,0.00017436,2]
[322881907,1713471044824,-150.0,0.00017442,2]
[322881908,1713471044835,-150.0,0.00017442,2]
[322881909,1713471044845,-150.0,0.00017443,2]
[322881910,1713471044856,-150.0,0.00017446,2]
[322881911,1713471044866,-150.0,0.00017447,2]
[322881912,1713471044876,-150.0,0.0001745,2]
[322881913,1713471044886,-150.0,0.00017457,2]
[322881914,1713471044895,-150.0,0.00017463,2]
[322881915,1713471044905,-150.0,0.00017466,2]
[322881916,1713471044916,-150.0,0.00017472,2]
[322881917,1713471044926,-150.0,0.00017472,2]
[322881918,1713471044936,-150.0,0.00017473,2]
[322881919,1713471044947,-150.0,0.00017473,2]
[322881920,1713471044957,-150.0,0.00017473,2]
[322881921,1713471044969,-150.0,0.00017473,2]
[322881922,1713471044979,-150.0,0.00017473,2]
[322881923,1713471044989,-150.0,0.00017473,2]
[322881924,1713471044998,-150.0,0.00017473,2]
[322881925,1713471045010,-150.0,0.00017474,2]
[322881926,1713471045019,-150.0,0.00017475,2]
[322881927,1713471045030,-150.0,0.00017475,2]
[322881928,1713471045040,-150.0,0.00017481,2]
[322881929,1713471045049,-150.0,0.00017485,2]
[322881930,1713471045060,-150.0,0.00017486,2]
[322881931,1713471045070,-150.0,0.00017487,2]
[322881932,1713471045080,-150.0,0.00017487,2]
[322881933,1713471045091,-150.0,0.00017487,2]
[322881934,1713471045103,-601.42851528,0.0001749,2]
[322881935,1713471045113,-189.93127907,0.00017492,2]
[322881936,1713471045123,-150.0,0.00017495,2]
[322881937,1713471045134,-559.08354536,0.00017496,2]
[322881938,1713471045146,-185.44808535,0.00017496,2]
[322881939,1713471045156,-150.0,0.00017497,2]
[322881940,1713471045167,-150.0,0.00017498,2]
[322881941,1713471045176,-559.66,0.00017499,2]
[322881942,1713471045187,-565.54,0.00017499,2]
[322881943,1713471045198,-10000.0,0.000175,2]
[322881944,1713471045209,-1000.0,0.000175,2]
[322881945,1713471045222,-96268.79216371,0.000175,2]
[322881946,1713471045232,-150.0,0.000175,2]
[322881947,1713471045242,-2578.0,0.000175,2]
[322881948,1713471045254,-565.30281,0.000175,2]
[322881949,1713471045267,-150.0,0.00017501,2]
[322881950,1713471045278,-150.0,0.00017502,2]
[322881951,1713471045287,-161.95614697,0.00017504,2]
[322881952,1713471045298,-150.0,0.00017504,2]
[322881953,1713471045308,-1500.0,0.00017504,2]
[322881954,1713471045317,-150.0,0.00017506,2]
[322881955,1713471045327,-150.0,0.00017514,2]
[322881956,1713471045337,-150.0,0.00017518,2]
[322881957,1713471045348,-150.0,0.00017519,2]
[322881958,1713471045359,-150.0,0.0001752,2]
[322881959,1713471045369,-150.0,0.00017522,2]
[322881960,1713471045379,-150.0,0.00017527,2]
[322881961,1713471045388,-150.0,0.00017528,2]
[322881962,1713471045397,-150.0,0.00017529,2]
[322881963,1713471045406,-150.0,0.00017529,2]
[322881964,1713471045416,-150.0,0.00017532,2]
[322881965,1713471045425,-150.0,0.00017532,2]
[322881966,1713471045433,-150.0,0.00017533,2]
[322881967,1713471045442,-150.0,0.00017534,2]
[322881969,1713471045452,-150.0,0.00017534,2]
[322881970,1713471045461,-300.0,0.00017536,2]
[322881971,1713471045471,-393.11359825,0.00017538,2]
[322882001,1713471046522,-106.88640175,0.00017538,2]
[322882002,1713471046534,-150.0,0.00017541,2]
[322882003,1713471046544,-150.0,0.00017542,2]
[322882004,1713471046555,-150.0,0.00017542,2]
[322882005,1713471046566,-151.03370214,0.00017542,2]
[322882006,1713471046575,-150.0,0.00017544,2]
[322882007,1713471046586,-150.0,0.00017547,2]
[322882008,1713471046596,-150.0,0.00017549,2]
[322882009,1713471046608,-80.39644611,0.0001755,2]
[322882010,1713471046679,-69.60355389,0.0001755,2]
[322882011,1713471046688,-150.0,0.00017551,2]
[322882012,1713471046698,-150.0,0.00017555,2]
[322882013,1713471046708,-150.0,0.00017561,2]
[322882014,1713471046717,-150.0,0.00017561,2]
[322882015,1713471046726,-150.0,0.00017563,2]
[322882016,1713471046735,-150.0,0.00017564,2]
[322882017,1713471046745,-150.0,0.00017567,2]
[322882018,1713471046754,-150.0,0.00017568,2]
[322882019,1713471046763,-150.0,0.00017569,2]
[322882020,1713471046773,-150.0,0.0001757,2]
[322882021,1713471046783,-150.0,0.00017573,2]
[322882022,1713471046793,-300.0,0.00017575,2]
[322882023,1713471046802,-150.0,0.00017575,2]
[322882024,1713471046811,-150.0,0.00017577,2]
[322882025,1713471046820,-150.0,0.00017579,2]
[322882026,1713471046830,-150.0,0.00017579,2]
[322882027,1713471046840,-306.08660696,0.0001758,2]
[322882028,1713471046952,-2682.44403694,0.0001758,2]
[322882029,1713471048727,-1481.30863424,0.00016906,2]
[322882030,1713471048739,-669.0,0.00017237,2]
[322882031,1713471048749,-150.0,0.00017396,2]
[322882032,1713471048760,-150.0,0.00017402,2]
[322882033,1713471048771,-150.0,0.00017405,2]
[322882034,1713471048782,-150.0,0.00017408,2]
[322882035,1713471048793,-150.0,0.00017411,2]
[322882036,1713471048803,-150.0,0.00017412,2]
[322882037,1713471048813,-150.0,0.00017417,2]
[322882038,1713471048821,-150.0,0.00017424,2]
[322882039,1713471048830,-150.0,0.00017426,2]
[322882040,1713471048839,-150.0,0.0001743,2]
[322882041,1713471048848,-150.0,0.00017444,2]
[322882042,1713471048858,-150.0,0.00017447,2]
[322882043,1713471048868,-150.0,0.00017452,2]
[322882044,1713471048877,-150.0,0.00017465,2]
[322882045,1713471048886,-150.0,0.00017474,2]
[322882046,1713471048895,-150.0,0.00017475,2]
[322882047,1713471048904,-150.0,0.00017484,2]
[322882048,1713471048913,-150.0,0.00017525,2]
[322882049,1713471048922,-150.0,0.00017537,2]
[322882050,1713471048931,-150.0,0.00017541,2]
[322882051,1713471048940,-150.0,0.00017543,2]
[322882052,1713471048950,-150.0,0.00017561,2]
[322882053,1713471048959,-150.0,0.00017565,2]
[322882054,1713471048968,-150.0,0.00017568,2]
[322882055,1713471048977,-150.0,0.0001757,2]
[322882056,1713471048985,-150.0,0.00017571,2]
[322882057,1713471048995,-150.0,0.00017571,2]
[322882058,1713471049004,-150.0,0.00017573,2]
[322882059,1713471049013,-14323.6191296,0.0001758,2]
[322882060,1713471049023,-150.0,0.00017586,2]
[322882061,1713471049033,-300.0,0.00017587,2]
[322882062,1713471049043,-150.0,0.00017589,2]
[322882063,1713471049052,-150.0,0.00017591,2]
[322882064,1713471049061,-150.0,0.00017591,2]
[322882065,1713471049070,-150.0,0.00017592,2]
[322882066,1713471049079,-500.0,0.00017592,2]
[322882067,1713471049088,-500.0,0.00017592,2]
[322882068,1713471049097,-500.0,0.00017592,2]
[322882069,1713471049107,-500.0,0.00017592,2]
[322882070,1713471049116,-502.0794,0.00017592,2]
[322882071,1713471049125,-150.0,0.00017593,2]
[322882072,1713471049134,-150.0,0.00017596,2]
[322882073,1713471049143,-150.0,0.00017597,2]
[322882074,1713471049151,-1240.85468141,0.00017598,2]
[322882075,1713471049160,-1243.72559864,0.00017599,2]
[322882076,1713471049169,-155.0,0.00017599,2]
[322882077,1713471049179,-482.0,0.000176,2]
[322882078,1713471049188,-150.0,0.00017605,2]
[322882079,1713471049197,-150.0,0.00017606,2]
[322882080,1713471049206,-150.0,0.00017608,2]
[322882081,1713471049216,-150.27,0.00017619,2]
[322882082,1713471049231,-150.0,0.0001762,2]
[322882083,1713471049241,-150.0,0.00017625,2]
[322882084,1713471049250,-150.0,0.00017628,2]
[322882085,1713471049260,-3073.96642284,0.00017629,2]
[322882086,1713471049270,-795.83073491,0.00017629,2]
[322882087,1713471049279,-150.0,0.00017632,2]
[322882088,1713471049289,-150.0,0.0001764,2]
[322882089,1713471049301,-150.0,0.00017643,2]
[322882090,1713471049311,-150.0,0.00017643,2]
[322882091,1713471049320,-150.0,0.00017644,2]
[322882092,1713471049329,-150.0,0.00017652,2]
[322882093,1713471049338,-150.0,0.00017658,2]
[322882094,1713471049347,-150.0,0.00017664,2]
[322882095,1713471049358,-150.0,0.00017667,2]
[322882096,1713471049367,-150.0,0.00017668,2]
[322882097,1713471049376,-150.27,0.0001767,2]
[322882098,1713471049385,-150.27,0.0001767,2]
[322882099,1713471049394,-150.27,0.0001767,2]
[322882100,1713471049403,-150.27,0.0001767,2]
[322882101,1713471049413,-150.27,0.0001767,2]
[322882102,1713471049422,-150.27,0.0001767,2]
[322882103,1713471049431,-150.27,0.0001767,2]
[322882104,1713471049441,-150.27,0.0001767,2]
[322882105,1713471049450,-150.27,0.0001767,2]
[322882106,1713471049461,-150.27,0.0001767,2]
[322882107,1713471049470,-150.27,0.0001767,2]
[322882108,1713471049479,-150.27,0.0001767,2]
[322882109,1713471049489,-150.27,0.0001767,2]
[322882110,1713471049498,-150.27,0.0001767,2]
[322882111,1713471049507,-150.27,0.0001767,2]
[322882112,1713471049517,-786.2294116,0.00017673,2]
[322882113,1713471049526,-2742.5906825,0.00017673,2]
[322882114,1713471049535,-16608.3993888,0.00017673,2]
[322882115,1713471049544,-3208.4556313,0.00017676,2]
[322882116,1713471049849,-40386.49228418,0.00017676,2]
[322882117,1713471049898,-655.82645214,0.00016999,2]
[322882118,1713471049907,-4.92054786,0.00017676,2]
[322882119,1713471049920,-125.51051576,0.00017676,2]
[322882120,1713471049929,-754.13069493,0.00017677,2]
[322882121,1713471049941,-1088.5,0.00017677,2]
[322882122,1713471049955,-738.57999998,0.00017677,2]
[322882123,1713471049998,-150.0,0.000175,2]
[322882124,1713471050007,-150.0,0.00017665,2]
[322882125,1713471050016,-1450.87557445,0.00017677,2]
[322882126,1713471050026,-565.54,0.00017677,2]
[322882127,1713471050035,-3938.29222588,0.00017678,2]
[322882128,1713471052527,319.70080444,0.00015407,2]
[322882131,1713471222994,154.49,0.00016198,15]
[322882133,1713471360241,180.06,0.00013699,2]
[322882134,1713471367125,504.0,0.00028208,120]
[322882135,1713471376876,4990.97,0.00015497,2]
[322882136,1713471438301,500.0,0.00015319,2]
[322882137,1713471439353,1489.34,0.00015319,2]
[322882138,1713471467294,164.83,0.00012271,2]
[322882139,1713471490013,200.0,0.0001535,2]
[322882140,1713471501161,150.0,0.0001535,2]
[322882141,1713471528388,199.68,0.00015393,2]
[322882142,1713471528622,500.0,0.00015393,2]
[322882143,1713471552476,509.39,0.00015388,2]
[322882144,1713471566440,717.05,0.00013458,2]
[322882145,1713471628026,8343.1432,0.00015437,2]
[322882146,1713471673113,30000.0,0.0002433,30]
[322882147,1713471695843,154.49,0.0001611,15]
[322882148,1713471716686,519.07030047,0.000155,2]
[322882149,1713471723004,695.42,0.00015363,3]
[322882150,1713471740301,23900.0,0.0001536,2]
[322882151,1713471787112,261.25015535,0.0001536,2]
[322882152,1713471804987,1192.32,0.00015312,2]
[322882153,1713471809807,175.49,0.00015308,2]
[322882154,1713471842255,169.37,0.00015308,2]
[322882155,1713471912685,180.06,0.00013699,2]
[322882156,1713471990237,250.0,0.0001537,2]
[322882157,1713472000533,217.48,0.00015495,2]
[322882158,1713472090026,681.19,0.00013469,2]
[322882159,1713472108743,840.25,0.00015351,2]
[322882160,1713472135960,-150.0,0.00015503,2]
[322882161,1713472140471,200.0,0.00015354,2]
[322882162,1713472148093,-150.0,0.00015503,2]
[322882163,1713472148123,-150.0,0.00015503,2]
[322882164,1713472151877,-150.0,0.00015503,2]
[322882165,1713472153170,-150.0,0.00015503,2]
[322882166,1713472154155,-150.0,0.00015503,2]
[322882170,1713472176837,155.0,0.00015502,2]
[322882171,1713472179262,151.0,0.00023993,120]
[322882175,1713472200218,500.0,0.00015405,2]
[322882176,1713472202511,150.0,0.00015502,2]
[322882177,1713472202772,300.0,0.00015502,2]
[322882181,1713472211277,7236.7582,0.00015403,2]
[322882190,1713472232182,-100.0,0.00015503,2]
[322882191,1713472232192,-643.3545244,0.00015503,2]
[322882192,1713472232201,-643.3545244,0.00015503,2]
[322882193,1713472232211,-643.3545244,0.00015503,2]
[322882194,1713472232220,-643.3545244,0.00015503,2]
[322882195,1713472232229,-643.3545244,0.00015503,2]
[322882196,1713472232239,-162.84215295,0.00015504,2]
[322882197,1713472232248,-643.3545244,0.00015505,2]
[322882198,1713472232258,-167.52,0.00015528,2]
[322882199,1713472232267,-150.01,0.00015537,2]
[322882200,1713472232276,-217.48,0.00015538,2]
[322882202,1713472232285,-977.32,0.00015538,2]
[322882205,1713472232295,-1968.55143902,0.00015538,2]
[322882206,1713472232307,-442.695,0.00015538,2]
[322882207,1713472232442,-11839.3002,0.00015538,2]
[322882208,1713472232476,-867.67329241,0.00015538,2]
[322882209,1713472232532,-319.50034176,0.00015538,2]
[322882210,1713472232544,-643.37972681,0.00015538,2]
[322882211,1713472232553,-217.48,0.0001558,2]
[322882212,1713472232562,-2359.54027316,0.0001558,6]
[322882213,1713472232622,-1109.70229201,0.0001558,6]
[322882225,1713472239198,-380.04,0.0001558,6]
[322882226,1713472239210,-7135.70743483,0.0001558,6]
[322882227,1713472239219,-2189.29256487,0.00015601,2]
[322882228,1713472239309,-1066.49993377,0.00015601,2]
[322882229,1713472239321,-386.97750136,0.00015601,2]
[322882230,1713472239330,-999.99,0.00015601,2]
[322882231,1713472239338,-499.99,0.00015601,2]
[322882232,1713472239348,-157.32,0.00015601,2]
[322882233,1713472239356,-311.46,0.00015601,2]
[322882234,1713472239366,-150.99,0.00015601,2]
[322882235,1713472239377,-217.48,0.00015623,2]
[322882236,1713472239386,-36.85864819,0.00015665,2]
[322882237,1713472239409,-180.62135181,0.00015665,2]
[322882238,1713472239417,-217.48,0.00015708,2]
[322882239,1713472239427,-580.86879597,0.00015733,2]
[322882240,1713472239439,-100.32120403,0.00015733,2]
[322882241,1713472239448,-217.48,0.0001575,2]
[322882242,1713472239459,-217.48,0.00015792,2]
[322882243,1713472239467,-60.76535063,0.00015835,2]
[322882244,1713472239562,-156.71464937,0.00015835,2]
[322882245,1713472239571,-160.06477078,0.00015877,2]
[322882246,1713472239582,-57.41522922,0.00015877,2]
[322882247,1713472239591,-267.72704526,0.00015902,2]
[322882248,1713472239601,-217.48,0.0001592,2]
[322882249,1713472239612,-176.0,0.00015943,2]
[322882250,1713472239621,-217.48,0.00015962,2]
[322882251,1713472239633,-69.32772551,0.00016,2]
[322882252,1713472239673,-385.46466382,0.00016,2]
[322882306,1713472241424,-795.20761067,0.00016,2]
[322882307,1713472241434,-217.48,0.00016005,2]
[322882308,1713472241443,-217.48,0.00016047,2]
[322882309,1713472241452,-217.48,0.0001609,2]
[322882310,1713472241461,-1545.92,0.00016116,2]
[322882311,1713472241471,-217.48,0.00016132,2]
[322882312,1713472241481,-217.48,0.00016175,2]
[322882313,1713472241491,-217.48,0.00016217,2]
[322882314,1713472241500,-217.48,0.0001626,2]
[322882315,1713472241510,-217.48,0.00016302,2]
[322882316,1713472241520,-150.0,0.00016335,2]
[322882317,1713472241530,-471.75,0.00016481,2]
[322882318,1713472241541,-471.75,0.00016485,2]
[322882319,1713472241552,-471.75,0.00016489,2]
[322882320,1713472241562,-471.75,0.00016494,2]
[322882321,1713472241572,-471.75,0.00016498,2]
[322882322,1713472241581,-471.75,0.00016502,2]
[322882323,1713472241592,-471.75,0.00016507,2]
[322882324,1713472241602,-471.75,0.00016511,2]
[322882325,1713472241613,-471.75,0.00016515,2]
[322882326,1713472241628,-471.75,0.0001652,2]
[322882327,1713472241638,-471.75,0.00016524,2]
[322882328,1713472241647,-471.75,0.00016528,2]
[322882329,1713472241660,-471.75,0.00016533,2]
[322882330,1713472241670,-471.75,0.00016537,2]
[322882331,1713472241679,-471.75,0.00016541,2]
[322882332,1713472241690,-471.75,0.00016546,2]
[322882333,1713472241701,-471.75,0.0001655,2]
[322882334,1713472241710,-471.75,0.00016554,2]
[322882335,1713472241720,-471.75,0.00016559,2]
[322882336,1713472241730,-471.75,0.00016563,2]
[322882337,1713472241740,-228.17,0.00016686,2]
[322882338,1713472241750,-200.0,0.000167,6]
[322882339,1713472241762,-665.36,0.00016712,2]
[322882340,1713472241773,-500.0,0.000168,6]
[322882341,1713472241783,-162.63,0.00016849,2]
[322882342,1713472241793,-150.0,0.00016849,2]
[322882343,1713472241803,-150.0,0.00016849,2]
[322882344,1713472241813,-162.63,0.00016849,2]
[322882345,1713472241823,-418.79,0.00016849,2]
[322882346,1713472241833,-162.63,0.00016849,2]
[322882347,1713472241843,-150.0,0.00016849,2]
[322882348,1713472241853,-418.79,0.00016849,2]
[322882349,1713472241863,-150.0,0.00016849,2]
[322882350,1713472241873,-162.63,0.00016849,2]
[322882351,1713472241885,-836.08,0.00016849,2]
[322882352,1713472241895,-150.0,0.00016849,2]
[322882353,1713472241907,-162.63,0.00016849,2]
[322882354,1713472241916,-162.63,0.00016849,2]
[322882355,1713472241925,-150.0,0.00016849,2]
[322882356,1713472241935,-162.63,0.00016849,2]
[322882357,1713472241944,-255.62,0.00016849,2]
[322882358,1713472241953,-150.0,0.00016849,2]
[322882359,1713472241962,-162.63,0.00016849,2]
[322882360,1713472241972,-162.63,0.00016849,2]
[322882361,1713472241982,-418.79,0.00016878,2]
[322882362,1713472241992,-521.35,0.00016878,2]
[322882363,1713472242001,-418.79,0.00016878,2]
[322882364,1713472242011,-297.50645054,0.00016896,2]
[322882365,1713472242021,-6482.74,0.00016899,2]
[322882366,1713472242030,-6482.74,0.00016899,2]
[322882367,1713472242039,-6482.74,0.00016899,2]
[322882368,1713472242049,-6482.74,0.00016899,2]
[322882369,1713472242059,-6482.74,0.00016899,2]
[322882370,1713472242070,-6482.74,0.00016899,2]
[322882371,1713472242081,-6482.74,0.00016899,2]
[322882372,1713472242091,-6482.74,0.00016899,2]
[322882373,1713472242100,-6482.74,0.00016899,2]
[322882374,1713472242111,-6482.74,0.00016899,2]
[322882375,1713472242121,-800.0,0.000169,6]
[322882376,1713472242132,-908.76,0.00016942,2]
[322882377,1713472242143,-412.63,0.00016942,2]
[322882378,1713472242153,-392.0,0.00016957,2]
[322882379,1713472242163,-150.0,0.00016978,2]
[322882380,1713472242175,-2230.8094468,0.0001699,2]
[322882381,1713472242184,-174.18460337,0.0001699,2]
[322882382,1713472242194,-151.7,0.0001699,2]
[322882383,1713472242204,-167.33,0.0001699,2]
[322882384,1713472242214,-155.0,0.00016997,2]
[322882385,1713472242223,-645.57179099,0.00016998,2]
[322882386,1713472242232,-8479.21,0.00016998,2]
[322882387,1713472242242,-8479.21,0.00016998,2]
[322882388,1713472242253,-8479.21,0.00016998,2]
[322882389,1713472242263,-8479.21,0.00016998,2]
[322882390,1713472242272,-8479.21,0.00016998,2]
[322882391,1713472242282,-8479.21,0.00016998,2]
[322882392,1713472242292,-8479.21,0.00016998,2]
[322882393,1713472242302,-8479.21,0.00016998,2]
[322882394,1713472242312,-8479.21,0.00016998,2]
[322882395,1713472242321,-8479.21,0.00016998,2]
[322882396,1713472242330,-8479.21,0.00016998,2]
[322882397,1713472242339,-8479.21,0.00016998,2]
[322882398,1713472242350,-8479.21,0.00016998,2]
[322882399,1713472242360,-8479.21,0.00016998,2]
[322882400,1713472242370,-8479.21,0.00016998,2]
[322882401,1713472242382,-8479.21,0.00016998,2]
[322882402,1713472242392,-8479.21,0.00016998,2]
[322882403,1713472242403,-8479.21,0.00016998,2]
[322882404,1713472242414,-8479.21,0.00016998,2]
[322882405,1713472242424,-8479.21,0.00016998,2]